fUST/lending_fUST_20240508
["ID","MTS","AMOUNT","RATE_DAILY","PERIOD"]
[326633659,1715170247024,-500.0,0.00026301,2]
[326633661,1715170247033,-500.0,0.00026301,2]
[326633663,1715170247042,-500.0,0.00026301,2]
[326633665,1715170247052,-500.0,0.00026301,2]
[326633667,1715170247061,-1028.09,0.00026301,2]
[326633669,1715170247071,-500.0,0.00026301,2]
[326633671,1715170247080,-500.0,0.00026301,2]
[326633673,1715170247089,-719.86,0.00026301,2]
[326633675,1715170247099,-500.0,0.00026575,2]
[326633677,1715170247108,-500.0,0.00026575,2]
[326633679,1715170247117,-500.0,0.00026575,2]
[326633681,1715170247126,-541.45,0.00026575,2]
[326633683,1715170247135,-969.6,0.00026575,2]
[326633685,1715170247144,-804.23,0.00026575,2]
[326633687,1715170247154,-1232.83,0.00026575,2]
[326633689,1715170247163,-510.47,0.00026575,2]
[326633691,1715170247173,-615.89,0.00026575,2]
[326633693,1715170247182,-500.0,0.00026575,2]
[326633695,1715170247191,-500.0,0.00026575,2]
[326633697,1715170247200,-500.0,0.00026575,2]
[326633699,1715170247210,-500.0,0.00026575,2]
[326633701,1715170247219,-1028.09,0.00026575,2]
[326633703,1715170247255,-500.0,0.00026575,2]
[326633705,1715170247282,-500.0,0.00026575,2]
[326633707,1715170247291,-719.86,0.00026575,2]
[326633709,1715170247301,-171.776081,0.00026634,2]
[326633711,1715170247310,-597.96517389,0.000268,2]
[326633713,1715170247320,-156.27,0.00026849,2]
[326633715,1715170247329,-500.0,0.00026849,2]
[326633717,1715170247338,-500.0,0.00026849,2]
[326633719,1715170247348,-541.45,0.00026849,2]
[326633721,1715170247358,-969.6,0.00026849,2]
[326633723,1715170247368,-804.23,0.00026849,2]
[326633725,1715170247377,-1232.83,0.00026849,2]
[326633727,1715170247386,-510.47,0.00026849,2]
[326633729,1715170247395,-615.89,0.00026849,2]
[326633731,1715170247404,-500.0,0.00026849,2]
[326633733,1715170247413,-500.0,0.00026849,2]
[326633735,1715170247424,-500.0,0.00026849,2]
[326633737,1715170247436,-500.0,0.00026849,2]
[326633739,1715170247445,-1028.09,0.00026849,2]
[326633741,1715170247455,-398.15,0.00026849,2]
[326633743,1715170247464,-500.0,0.00026849,2]
[326633745,1715170247475,-719.86,0.00026849,2]
[326633747,1715170247484,-32228.98581375,0.000269,2]
[326633749,1715170247493,-197.707357,0.000269,2]
[326633751,1715170247504,-233.44176,0.000269,2]
[326633753,1715170247514,-151.0,0.000269,2]
[326633755,1715170247523,-151.0,0.000269,2]
[326633757,1715170247533,-151.0,0.000269,2]
[326633759,1715170247542,-151.0,0.000269,2]
[326633761,1715170247551,-74.17923653,0.000269,2]
[326633773,1715170247651,-2382.85189368,0.0002508,3]
[326634755,1715171211221,816.74367356,9.999e-05,2]
[326634756,1715171231862,284.426094,9.999e-05,2]
[326634757,1715171232949,465.25036391,9.999e-05,2]
[326634758,1715171254312,1245.04426602,9.999e-05,2]
[326634759,1715171257416,160.85601161,9.999e-05,2]
[326634760,1715171258606,201.85878435,0.00014,2]
[326634761,1715171259805,728.05373395,0.00014,2]
[326634762,1715171261771,584.28660098,9.998e-05,2]
[326634763,1715171263559,155.30163464,9.999e-05,2]
[326634764,1715171268851,475.84079107,9.997e-05,2]
[326634766,1715171314526,581.7424777,9.997e-05,2]
[326634767,1715171327211,260.68975276,9.999e-05,2]
[326634768,1715171347463,-3456.78149574,0.00015582,2]
[326634769,1715171348635,-584.28660098,0.00015582,2]
[326634770,1715171349581,-1905.2901343,0.00015583,2]
[326634771,1715171350767,-3056.17446337,0.00015882,2]
[326634772,1715171351354,-284.426094,0.00015883,2]
[326634773,1715171353150,-744.35757128,0.00015883,2]
[326634774,1715171354301,-260.68975276,0.00015883,2]
[326634775,1715171355546,-154.77278311,0.00015884,2]
[326634776,1715171357162,-167.570547,0.0001589,2]
[326634777,1715171357199,-173.114605,0.0001589,2]
[326634778,1715171357670,-894.24108922,0.00016,2]
[326634779,1715171358340,-816.74367356,0.00017171,2]
[326634780,1715171358369,-890.57912823,0.00017172,2]
[326634781,1715171358660,729.29427422,0.00015881,2]
[326634782,1715171358733,-14963.68596898,0.00015881,2]
[326634783,1715171423757,1493.78708353,9.999e-05,2]
[326634862,1715171447686,-780.359252,0.00016853,2]
[326634863,1715171447817,-260.68975276,0.00017171,2]
[326634864,1715171447827,-38.78420387,0.00017172,2]
[326634865,1715171447836,-816.74367356,0.00017181,2]
[326634866,1715171447847,-70.65900841,0.00017181,2]
[326634867,1715171447860,-513.62759257,0.00017181,2]
[326634868,1715171447870,-3056.17446337,0.00017181,2]
[326634869,1715171447879,-894.24108922,0.00017182,2]
[326634870,1715171447890,-1000.9487419,0.00017183,2]
[326634871,1715171447899,-1869.35757111,0.00018074,2]
[326634872,1715171447909,-365.52872673,0.00018074,2]
[326634873,1715171447919,-285.93150749,0.00018074,2]
[326634874,1715171447928,-1712.9168005,0.00018074,2]
[326634875,1715171447937,-809.52359201,0.00018074,2]
[326634876,1715171447947,-155.44090841,0.00018074,2]
[326634877,1715171447956,-718.58825554,0.00018074,2]
[326634878,1715171447966,-205.09992679,0.00018074,2]
[326634879,1715171447975,-1396.4736443,0.00018075,2]
[326634880,1715171447985,-379.78316757,0.00018075,2]
[326634881,1715171447995,-155.42496717,0.00018075,2]
[326634882,1715171448005,-309.16301887,0.00018075,2]
[326634883,1715171448017,-1894.38518573,0.00018076,2]
[326634884,1715171448026,-155.85743816,0.00018076,2]
[326634885,1715171448036,-1714.32173428,0.00018076,2]
[326634886,1715171448045,-236.61709013,0.00018076,2]
[326634887,1715171448056,-1082.701781,0.00018076,2]
[326634888,1715171448065,-286.36676932,0.00018076,2]
[326634889,1715171448075,-307.7970432,0.00018076,2]
[326634890,1715171448084,-155.08680819,0.00018076,2]
[326634891,1715171448095,-1493.3459025,0.00018076,2]
[326634892,1715171448105,-478.46344218,0.00018077,2]
[326634893,1715171448114,-2577.80963927,0.00018077,2]
[326634894,1715171448123,-24900.0,0.00018078,2]
[326634895,1715171448132,-631.27444757,0.000184,2]
[326634896,1715171448141,-604.62485122,0.000185,2]
[326634897,1715171448150,-243.8,0.00018776,2]
[326634898,1715171448159,-150.0,0.00018776,2]
[326634899,1715171448168,-1339.02661668,0.000189,2]
[326634900,1715171448178,-309.25778132,0.00019,2]
[326634901,1715171448187,-314.2698051,0.00019178,2]
[326634902,1715171448196,-500.0,0.00019178,2]
[326634903,1715171448206,-500.0,0.00019178,2]
[326634904,1715171448217,-500.0,0.00019178,2]
[326634905,1715171448227,-500.0,0.00019178,2]
[326634906,1715171448236,-500.0,0.00019178,2]
[326634907,1715171448246,-500.0,0.00019178,2]
[326634908,1715171448255,-500.0,0.00019178,2]
[326634909,1715171448264,-500.0,0.00019178,2]
[326634910,1715171448273,-312.41528197,0.00019178,2]
[326634911,1715171448282,-440.19510808,0.00019178,2]
[326634912,1715171448291,-500.0,0.00019178,2]
[326634913,1715171448300,-500.0,0.00019178,2]
[326634914,1715171448309,-500.0,0.00019178,2]
[326634915,1715171448319,-500.0,0.00019178,2]
[326634916,1715171448328,-500.0,0.00019178,2]
[326634917,1715171448337,-286.60311126,0.00019178,2]
[326634919,1715171450996,-2630.07945824,0.00016852,2]
[326634920,1715171451005,-213.39688874,0.00019178,2]
[326634922,1715171451014,-500.0,0.00019178,2]
[326634924,1715171451024,-500.0,0.00019178,2]
[326634926,1715171451033,-83.97341729,0.00019178,2]
[326634929,1715171451044,-536.02658271,0.00019178,2]
[326634932,1715171451053,-180.0,0.00019178,2]
[326634934,1715171451062,-500.0,0.00019178,2]
[326634936,1715171451071,-162.327166,0.00019178,2]
[326634938,1715171451080,-199.89996289,0.000199,2]
[326634940,1715171451089,-176.44293951,0.00019998,2]
[326634942,1715171451099,-500.0,0.00019999,2]
[326634944,1715171451109,-500.0,0.00019999,2]
[326634945,1715171451118,-399.85345651,0.00019999,2]
[326634947,1715171451127,-478.59574964,0.00019999,2]
[326634950,1715171451137,-323.62308888,0.00019999,2]
[326634951,1715171451146,-500.0,0.00019999,2]
[326634953,1715171451155,-500.0,0.00019999,2]
[326634955,1715171451164,-447.3151906,0.00019999,2]
[326634957,1715171451174,-500.0,0.00019999,2]
[326634959,1715171451183,-500.0,0.00019999,2]
[326634961,1715171451192,-243.57872489,0.00019999,2]
[326634964,1715171451202,-526.93716755,0.00019999,2]
[326634966,1715171451214,-23.06283245,0.00019999,2]
[326634968,1715171451225,-191.70651026,0.00019999,2]
[326634970,1715171451236,-330.43257549,0.0002,2]
[326634972,1715171451246,-379.96231687,0.0002,2]
[326634974,1715171451256,-320.60889493,0.0002,2]
[326634976,1715171451266,-5467.6138057,0.0002,2]
[326634978,1715171451275,-2810.90132442,0.0002,2]
[326634980,1715171451287,-824.74,0.0002,2]
[326635048,1715171460934,-159.1467008,0.00018076,2]
[326635053,1715171460945,-604.62485122,0.000185,2]
[326635058,1715171460955,-188.41780747,0.00019999,2]
[326635062,1715171460966,-254.43570983,0.00019999,2]
[326635065,1715171460976,-78.49493068,0.00019999,2]
[326635067,1715171460988,-79.96158714,0.00019999,2]
[326635069,1715171460998,-584.75764216,0.00019999,2]
[326635071,1715171461008,-89.25115906,0.0002,2]
[326635073,1715171461019,-1785.00000001,0.0002,2]
[326635075,1715171461030,-908.757849,0.0002,2]
[326635077,1715171461041,-2007.10844194,0.0002,2]
[326635080,1715171461053,-4766.19460774,0.0002,2]
[326635082,1715171461064,-871.13088573,0.0002,2]
[326635084,1715171461075,-19796.32,0.0002,2]
[326635137,1715171463331,-239.674456,0.00019998,2]
[326635138,1715171463342,-894.24108922,0.00019998,2]
[326635139,1715171463352,-547.81097167,0.0002,2]
[326635140,1715171463365,-1804.323423,0.0002,2]
[326635141,1715171463377,-3012.47132687,0.0002,2]
[326635145,1715171477017,154.73694719,9.999e-05,2]
[326635146,1715171477571,173.30205613,9.999e-05,2]
[326635147,1715171483720,6695.93820509,9.999e-05,2]
[326635148,1715171485090,181.484266,9.999e-05,2]
[326635149,1715171486132,8550.77028978,9.999e-05,2]
[326635150,1715171556643,288.45698863,0.000137,2]
[326635151,1715171623837,524.11454042,9.999e-05,2]
[326635152,1715171635637,816.36645529,9.999e-05,2]
[326635153,1715171672125,154.73694719,9.999e-05,2]
[326635184,1715171891200,-288.45698863,0.00015874,2]
[326635185,1715171892391,-524.11454042,0.00015875,2]
[326635186,1715171893608,-5819.14540838,0.00015875,2]
[326635187,1715171894273,-154.73694719,0.00015876,2]
[326635188,1715171894296,-3456.78149574,0.00015876,2]
[326635189,1715171894318,-816.74367356,0.00015876,2]
[326635190,1715171894340,-940.02094608,0.00015877,2]
[326635193,1715172358596,24900.0,0.00014974,2]
[326635196,1715172408829,186.57507441,9.999e-05,2]
[326635197,1715172409310,1493.78708353,9.999e-05,2]
[326635198,1715172413514,284.426094,9.999e-05,2]
[326635199,1715172416992,816.74367356,9.999e-05,2]
[326635200,1715172441446,1348.23552051,9.999e-05,2]
[326635201,1715172443368,154.73694719,9.999e-05,2]
[326635202,1715172455222,749.966306,0.00014902,2]
[326635203,1715172457428,465.25036391,9.999e-05,2]
[326635204,1715172464950,288.45698863,0.000137,2]
[326635218,1715172608190,412.72806023,9.999e-05,2]
[326635219,1715172613056,1336.45343508,9.998e-05,2]
[326635220,1715172613397,2104.10620135,0.00015,2]
[326635221,1715172613979,816.36645529,9.998e-05,2]
[326635222,1715172620341,154.73694719,9.999e-05,2]
[326635224,1715172625829,940.74470998,0.00015,2]
[326635225,1715172629329,154.73694719,9.998e-05,2]
[326635241,1715172641040,154.73694719,9.999e-05,2]
[326635243,1715172644327,-1193.6739396,0.00015128,2]
[326635377,1715172651869,154.73694719,9.999e-05,2]
[326635378,1715172652441,-1862.50052377,0.00015128,2]
[326635379,1715172652451,-154.73694719,0.00015129,2]
[326635380,1715172652461,-309.41212931,0.00015129,2]
[326635381,1715172652470,-154.73694719,0.00015129,2]
[326635382,1715172652479,-536.81704621,0.00015129,2]
[326635383,1715172652489,-1116.85535281,0.00015129,2]
[326635384,1715172652498,-584.11436245,0.00015129,2]
[326635385,1715172652508,-815.65661281,0.00015129,2]
[326635386,1715172652517,-154.73694719,0.00015129,2]
[326635387,1715172652526,-248.03587545,0.00015129,2]
[326635388,1715172652535,-409.6661174,0.00015129,2]
[326635389,1715172652544,-154.73694719,0.00015129,2]
[326635390,1715172652552,-942.59133267,0.00015129,2]
[326635391,1715172652563,-155.54963401,0.00015129,2]
[326635392,1715172652572,-154.80290316,0.00015129,2]
[326635393,1715172652581,-2153.32954009,0.0001513,2]
[326635394,1715172652590,-154.73694719,0.0001513,2]
[326635395,1715172652598,-284.426094,0.00015131,2]
[326635396,1715172652607,-15692.9802432,0.00015131,2]
[326635397,1715172652616,-288.45698863,0.00015131,2]
[326635398,1715172652625,-816.74367356,0.00015131,2]
[326635399,1715172652635,-250.0,0.00015144,2]
[326635400,1715172652644,-444.420831,0.00015407,2]
[326635401,1715172652653,-439.424537,0.0001589,2]
[326635402,1715172652663,-378.935988,0.0001589,2]
[326635403,1715172652672,-497.94914951,0.0001635,2]
[326635404,1715172660556,1713.52039077,9.999e-05,2]
[326635405,1715172661139,469.52966463,9.999e-05,2]
[326635406,1715172665485,524.11454042,9.999e-05,2]
[326635409,1715172708390,3456.78149574,9.999e-05,2]
[326635410,1715172709528,718.7949124,9.999e-05,2]
[326635411,1715172710360,1578.7542886,9.999e-05,2]
[326635412,1715172846921,250.0,0.00015004,2]
[326635413,1715172870523,681.12,0.00010959,2]
[326635414,1715172908272,150.0,0.000266,120]
[326635415,1715172953477,465.25036391,9.999e-05,2]
[326635416,1715173038842,24900.0,0.00014832,2]
[326635417,1715173052146,288.45698863,0.0001501,2]
[326635418,1715173075427,2630.07945824,0.0001501,2]
[326635419,1715173120901,855.691263,0.00014968,2]
[326635420,1715173131623,1500.0,0.00015,2]
[326635421,1715173137034,284.426094,9.999e-05,2]
[326635422,1715173265016,2177.09748315,0.0001,2]
[326635437,1715173553850,379.96330027,9.999e-05,2]
[326635449,1715173564722,24900.0,0.00014881,2]
[326635451,1715173568135,154.75239617,9.999e-05,2]
[326635452,1715173579005,1493.78708353,9.999e-05,2]
[326635453,1715173585539,1538.46502438,9.999e-05,2]
[326635462,1715173652786,2630.07945824,0.0001501,2]
[326635463,1715173666047,2460.62416495,0.0001501,2]
[326635464,1715173666869,465.25036391,9.999e-05,2]
[326635471,1715173685466,3056.17446337,0.0001501,2]
[326635472,1715173690060,154.75239617,9.999e-05,2]
[326635473,1715173697438,288.45698863,0.000137,2]
[326635474,1715173697535,546.331276,0.00014112,2]
[326635475,1715173720202,250.26618342,0.00014915,2]
[326635479,1715173812701,245.07,0.000266,120]
[326635748,1715173852389,-154.75239617,0.00015028,2]
[326635749,1715173852399,-2153.32954009,0.00015029,2]
[326635750,1715173852408,-947.70157128,0.0001503,2]
[326635751,1715173852417,-250.0,0.00015066,2]
[326635752,1715173852427,-500.05360405,0.00015126,2]
[326635753,1715173852436,-1476.51824746,0.00015126,2]
[326635754,1715173852448,-517.18511808,0.00015126,2]
[326635755,1715173852458,-1467.79313193,0.00015126,2]
[326635756,1715173852469,-993.7703,0.00015126,2]
[326635757,1715173852684,-289.92222036,0.00015126,2]
[326635758,1715173852694,-376.31748386,0.00015126,2]
[326635759,1715173852703,-603.76029578,0.00015127,2]
[326635760,1715173852715,-562.34782401,0.00015127,2]
[326635761,1715173852724,-2022.12319601,0.00015128,2]
[326635762,1715173891371,405.5834702,0.00014325,2]
[326635763,1715173913640,1134.45599227,0.00015,2]
[326635764,1715173935601,1623.91241692,9.999e-05,2]
[326635765,1715173940600,1482.78251838,9.999e-05,2]
[326635766,1715173945363,236.14409634,9.999e-05,2]
[326635768,1715174106375,150.0,0.000266,120]
[326635769,1715174136522,24900.0,0.00014096,2]
[326635776,1715174407338,999.05104431,9.999e-05,2]
[326635782,1715174634882,5000.0,0.000211,9]
[326635786,1715174678075,5000.0,0.000211,9]
[326635799,1715174718199,24900.0,0.0001497,2]
[326635807,1715174726558,5000.0,0.00021,9]
[326635808,1715174762688,5000.0,0.000211,9]
[326635809,1715174776188,5000.0,0.00021,9]
[326635810,1715174785021,273.165638,0.0001495,2]
[326635811,1715174811408,-275.66197111,0.00015126,2]
[326635812,1715174812547,-643.44315155,0.00015127,2]
[326635813,1715174813442,-194.50784143,0.00015129,2]
[326635814,1715174813951,-200.46375748,0.00015129,2]
[326635815,1715174814480,-302.37200209,0.00015129,2]
[326635816,1715174815348,-777.34867068,0.00015129,2]
[326635817,1715174815370,-1184.4802272,0.00015133,2]
[326635818,1715174815394,-199.937177,0.0001589,2]
[326635819,1715174815418,-159.166864,0.0001589,2]
[326635820,1715174815441,-417.45331,0.0001589,2]
[326635821,1715174815463,-894.24108922,0.00016293,2]
[326635822,1715174815486,-528.90448958,0.00016294,2]
[326635823,1715174815512,-315.23619623,0.00016349,2]
[326635824,1715174815534,-185.02185363,0.00016349,2]
[326635825,1715174815556,-223.57252703,0.0001635,2]
[326635826,1715174815578,-237.01832517,0.00016391,2]
[326635827,1715174815599,-226.82275963,0.00016391,2]
[326635828,1715174815621,-1625.53078522,0.00016392,2]
[326635829,1715174815643,-406.38457344,0.00016393,2]
[326635830,1715174815665,-10798.73242831,0.00016393,2]
[326635831,1715174825944,10000.0,0.000266,120]
[326635832,1715174852617,10000.0,0.000266,120]
[326635833,1715174870602,10000.0,0.000266,120]
[326635834,1715174887692,1905.2901343,0.0001497,2]
[326635835,1715174891089,10000.0,0.000266,120]
[326635836,1715174897225,284.426094,9.999e-05,2]
[326635837,1715174907739,10000.0,0.000266,120]
[326635838,1715174907792,260.68975276,9.999e-05,2]
[326635839,1715174923569,816.74367356,9.999e-05,2]
[326635840,1715174926879,10000.0,0.000266,120]
[326635841,1715174952245,744.57696609,0.000138,2]
[326635842,1715175018499,173.30205613,0.000138,2]
[326635843,1715175022044,6877.42247109,0.000138,2]
[326635845,1715175035539,-15692.9802432,0.00015568,2]
[326635846,1715175035548,-24493.00360214,0.00015569,2]
[326635902,1715175045702,-5303.41700159,0.00015569,2]
[326635908,1715175046992,-999.9933705,0.00015569,2]
[326635914,1715175047005,-28503.01217856,0.00015569,2]
[326635918,1715175047016,-890.57912823,0.00015571,2]
[326635923,1715175047026,-894.24108922,0.00016,2]
[326635928,1715175047036,-163.96567727,0.00016194,2]
[326635932,1715175047045,-876.73414162,0.00016294,2]
[326635936,1715175047055,-584.28660098,0.00016391,2]
[326635938,1715175047064,-309.41710118,0.00016391,2]
[326635941,1715175047077,-1493.78708353,0.00016391,2]
[326635944,1715175047087,-285.88051289,0.00016391,2]
[326635946,1715175047097,-395.28772496,0.00016391,2]
[326635948,1715175047108,-486.58247221,0.00016391,2]
[326635950,1715175047118,-744.13817647,0.00016391,2]
[326635952,1715175047128,-3056.17446337,0.00016392,2]
[326635954,1715175047137,-155.46639194,0.00016394,2]
[326635955,1715175047147,-1786.28588142,0.00016396,2]
[326635956,1715175047156,-469.25932685,0.00016396,2]
[326635957,1715175047165,-373.6078872,0.00016396,2]
[326635958,1715175047174,-1580.00719847,0.00016396,2]
[326635959,1715175047184,-243.20174039,0.00016396,2]
[326635960,1715175047194,-1336.45343508,0.00016396,2]
[326635961,1715175047203,-156.6989019,0.00016396,2]
[326635962,1715175047213,-405.75376683,0.00016396,2]
[326635963,1715175047222,-940.45532708,0.00016397,2]
[326635964,1715175047232,-292.03540589,0.00016398,2]
[326635965,1715175047241,-458.23142363,0.00016398,2]
[326635966,1715175047250,-1092.31080328,0.00016398,2]
[326635967,1715175047259,-155.62603207,0.00016398,2]
[326635968,1715175047268,-1391.55773297,0.00016398,2]
[326635969,1715175047277,-1651.24386926,0.00016398,2]
[326635970,1715175047287,-186.39835571,0.00016398,2]
[326635971,1715175047296,-234.73806196,0.00016398,2]
[326635972,1715175047305,-362.20085629,0.00016398,2]
[326635973,1715175047314,-154.73694719,0.00016398,2]
[326635974,1715175047325,-193.22223894,0.00016398,2]
[326635975,1715175047335,-162.37579535,0.00016398,2]
[326635976,1715175047344,-154.76784823,0.00016398,2]
[326635977,1715175047353,-379.11828235,0.00016398,2]
[326635978,1715175047362,-794.63379142,0.00016398,2]
[326635979,1715175047372,-30472.249503,0.000164,2]
[326635980,1715175047381,-151.0,0.000164,2]
[326635981,1715175047391,-151.0,0.000164,2]
[326635982,1715175047400,-151.0,0.000164,2]
[326635983,1715175047409,-425.913344,0.000164,2]
[326635984,1715175047418,-4572.232256,0.000164,2]
[326635985,1715175047428,-425.913344,0.000164,2]
[326635986,1715175047437,-4572.232256,0.000164,2]
[326635987,1715175047446,-157.62827,0.000164,2]
[326635988,1715175047455,-602.518794,0.000164,2]
[326635989,1715175047464,-152.288094,0.000164,2]
[326635990,1715175047473,-602.518794,0.000164,2]
[326635991,1715175047482,-2106.195686,0.000164,2]
[326635992,1715175047492,-2106.195686,0.000164,2]
[326635993,1715175047502,-273.39263722,0.000165,2]
[326635994,1715175047511,-306.0,0.00017534,2]
[326635995,1715175047520,-528.90448958,0.00017547,2]
[326635996,1715175047530,-163.96567727,0.00017634,2]
[326635997,1715175047540,-306.0,0.00017734,2]
[326635998,1715175047549,-160.0,0.00017999,2]
[326635999,1715175047558,-199.99964474,0.00017999,2]
[326636000,1715175047570,-7359.38575588,0.00018,2]
[326636001,1715175047579,-228.06241,0.00018,2]
[326636002,1715175047589,-151.0,0.00018,2]
[326636003,1715175047598,-151.0,0.00018,2]
[326636004,1715175047608,-151.0,0.00018,2]
[326636005,1715175047617,-151.0,0.00018,2]
[326636006,1715175047627,-151.0,0.00018,2]
[326636007,1715175047636,-236.155983,0.00018,2]
[326636008,1715175047645,-151.0,0.00018,2]
[326636009,1715175047655,-151.0,0.00018,2]
[326636010,1715175047664,-151.0,0.00018,2]
[326636011,1715175047673,-151.0,0.00018,2]
[326636012,1715175047682,-151.0,0.00018,2]
[326636013,1715175047692,-151.0,0.00018,2]
[326636014,1715175047701,-151.0,0.00018,2]
[326636015,1715175047711,-151.0,0.00018,2]
[326636016,1715175047721,-151.0,0.00018,2]
[326636017,1715175047730,-151.0,0.00018,2]
[326636018,1715175047740,-151.0,0.00018,2]
[326636019,1715175047749,-151.0,0.00018,2]
[326636020,1715175047759,-151.0,0.00018,2]
[326636021,1715175047769,-151.0,0.00018,2]
[326636022,1715175047778,-151.0,0.00018,2]
[326636023,1715175047788,-151.0,0.00018,2]
[326636024,1715175047797,-151.0,0.00018,2]
[326636025,1715175047807,-151.0,0.00018,2]
[326636026,1715175047818,-1030.70572005,0.00018,2]
[326636027,1715175047828,-204.876778,0.00018,2]
[326636028,1715175047837,-196.058026,0.00018,2]
[326636029,1715175047847,-203.07748282,0.00018,2]
[326636030,1715175047857,-151.0,0.00018,2]
[326636031,1715175047866,-151.0,0.00018,2]
[326636032,1715175047876,-151.0,0.00018,2]
[326636033,1715175047885,-151.0,0.00018,2]
[326636034,1715175047895,-151.0,0.00018,2]
[326636035,1715175047904,-699.231898,0.00018,2]
[326636036,1715175047914,-699.231898,0.00018,2]
[326636037,1715175047924,-699.231898,0.00018,2]
[326636038,1715175047937,-699.231898,0.00018,2]
[326636039,1715175047947,-699.231898,0.00018,2]
[326636040,1715175047956,-699.231898,0.00018,2]
[326636041,1715175047967,-699.231898,0.00018,2]
[326636042,1715175047976,-699.231898,0.00018,2]
[326636043,1715175047986,-699.231898,0.00018,2]
[326636044,1715175047995,-699.231898,0.00018,2]
[326636045,1715175048005,-699.231898,0.00018,2]
[326636046,1715175048016,-699.231898,0.00018,2]
[326636047,1715175048025,-586.09317452,0.00018,2]
[326636048,1715175048039,-113.13872348,0.00018,2]
[326636049,1715175048048,-699.231898,0.00018,2]
[326636050,1715175048058,-699.231898,0.00018,2]
[326636051,1715175048138,-699.231898,0.00018,2]
[326636052,1715175048166,-699.231898,0.00018,2]
[326636053,1715175048176,-699.231898,0.00018,2]
[326636054,1715175048185,-699.231898,0.00018,2]
[326636055,1715175048194,-699.231904,0.00018,2]
[326636056,1715175048204,-151.0,0.00018,2]
[326636057,1715175048213,-151.0,0.00018,2]
[326636058,1715175048222,-151.0,0.00018,2]
[326636059,1715175048231,-151.0,0.00018,2]
[326636060,1715175048240,-151.0,0.00018,2]
[326636061,1715175048250,-151.0,0.00018,2]
[326636062,1715175048259,-151.0,0.00018,2]
[326636063,1715175048268,-151.0,0.00018,2]
[326636064,1715175048277,-130.03798452,0.00018,2]
[326636065,1715175048290,-20.96201548,0.00018,2]
[326636066,1715175048299,-219.379044,0.00018,2]
[326636067,1715175048310,-151.0,0.00018,2]
[326636068,1715175048320,-151.0,0.00018,2]
[326636069,1715175048329,-151.0,0.00018,2]
[326636070,1715175048337,-151.0,0.00018,2]
[326636071,1715175048346,-151.451787,0.00018,2]
[326636072,1715175048356,-270.006337,0.00018,2]
[326636073,1715175048365,-270.006337,0.00018,2]
[326636074,1715175048375,-270.006337,0.00018,2]
[326636075,1715175048384,-270.006337,0.00018,2]
[326636076,1715175048394,-270.006337,0.00018,2]
[326636077,1715175048403,-270.006337,0.00018,2]
[326636078,1715175048412,-270.006337,0.00018,2]
[326636079,1715175048422,-270.006337,0.00018,2]
[326636080,1715175048431,-270.006337,0.00018,2]
[326636081,1715175048441,-270.006337,0.00018,2]
[326636082,1715175048450,-270.006337,0.00018,2]
[326636083,1715175048459,-270.006337,0.00018,2]
[326636084,1715175048469,-270.006337,0.00018,2]
[326636085,1715175048479,-270.006337,0.00018,2]
[326636086,1715175048489,-270.006337,0.00018,2]
[326636087,1715175048499,-270.006337,0.00018,2]
[326636088,1715175048508,-270.006337,0.00018,2]
[326636089,1715175048518,-270.006337,0.00018,2]
[326636090,1715175048527,-270.006337,0.00018,2]
[326636091,1715175048537,-270.006337,0.00018,2]
[326636092,1715175048548,-151.0,0.00018,2]
[326636093,1715175048558,-151.0,0.00018,2]
[326636094,1715175048568,-151.0,0.00018,2]